Cogmind - Beta 13 @@@ ROGUE MODE // 2024.04.26 @ 03:30:13 Player: Alphabethead Result: Destroyed by L-41 Fighter with Axe Performance ------------- Evolutions (1) 500 Regions Visited (5) 1000 Robots Destroyed (25) 125 Value Destroyed (503) 503 Prototype IDs (4) 80 Alien Tech Used (0) 0 Bonus (0) 0 TOTAL SCORE: 2208 Bonus ------- None Cogmind --------- Core Integrity 0/400 Matter 295/300 Energy 290/290 System Corruption 0% Temperature Cool (82) Movement Core (900) Ox17 Location -6/Proximity Caves Parts ------- > --- POWER (1) -------- Improved Deuterium Engine > --- PROPULSION (3) --- (None) > --- UTILITY (3) ------ Heat Sink High-capacity Storage Unit > --- WEAPON (2) ------- Makeshift Sword > --- INVENTORY (20) --- Light Nuclear Core Heat Sink High-capacity Battery (250) Signal Interpreter Makeshift ECM Suite Hacking Drone Bay (1/1) Makeshift Shrapnel Gun Makeshift Shrapnel Gun Mining Laser Self-destruct Interrupter (50) Peak State ------------ > --- POWER ------------ Improved Ion Engine > --- PROPULSION ------- Wheel Wheel Wheel > --- UTILITY ---------- Heat Sink High-capacity Storage Unit Hacking Drone Bay > --- WEAPON ----------- Spread Laser Spread Laser > --- INVENTORY -------- Improved Ion Engine Wheel Heat Sink High-capacity Battery Signal Interpreter Seismic Detector Mobile Refinery Mk. CCLXVII Spread Laser Spread Laser Mining Laser Self-destruct Interrupter [Rating: 22] Favorites ----------- Power Ion Engine Engine Ion Engine Propulsion Wheel Wheel Wheel Utility Seismic Detector Device Seismic Detector Storage High-capacity Storage Unit Weapon Spread Laser Energy Gun Spread Laser Ballistic Gun Assault Rifle Special Weapon Mining Laser Slashing Weapon Makeshift Sword Build | -11 -10 -9 -9 -7 -6 ------- Run | Yrd Mat Mat Min Zio Pro Slots Evolved 2 | . . 2 . . . Power . | . . . . . . Propulsion 1 | . . 1 . . . Utility 1 | . . 1 . . . Weapon . | . . . . . . Parts Attached 29 | 7 9 3 . 5 5 Power 5 | 1 1 1 . 1 1 Engine 5 | 1 1 1 . 1 1 Core . | . . . . . . Reactor . | . . . . . . Propulsion 5 | 2 1 1 . . 1 Treads . | . . . . . . Leg . | . . . . . . Wheel 5 | 2 1 1 . . 1 Hover . | . . . . . . Flight . | . . . . . . Utility 9 | 2 2 1 . 4 . Device 6 | 1 . 1 . 4 . Storage 3 | 1 2 . . . . Processor . | . . . . . . Hackware . | . . . . . . Protection . | . . . . . . Artifact . | . . . . . . Weapon 10 | 2 5 . . . 3 Energy Gun 7 | 2 3 . . . 2 Energy Cannon . | . . . . . . Ballistic Gun 1 | . 1 . . . . Ballistic Cannon . | . . . . . . Launcher . | . . . . . . Special Weapon 1 | . 1 . . . . Impact Weapon . | . . . . . . Slashing Weapon 1 | . . . . . 1 Piercing Weapon . | . . . . . . Special Melee Weapon . | . . . . . . Unidentified Prototypes 2 | . . . . 2 . Parts Lost 12 | . 2 . . . 10 Power 2 | . 1 . . . 1 Propulsion 5 | . 1 . . . 4 Utility 1 | . . . . . 1 Weapon 4 | . . . . . 4 Highest Loss Streak 6 | . 2 . . . 6 To Critical Strikes . | . . . . . . Average Slot Usage (%) 98 | . 97 100 100 100 80 Engine 11 | . 13 11 11 11 9 Wheel 30 | . 26 33 33 33 23 Device 18 | . 14 22 22 22 15 Storage 11 | . 14 11 11 11 11 Energy Gun 22 | . 23 22 22 22 22 Naked Turns . | . . . . . . Heaviest Build 58 | 15 52 55 55 58 58 Greatest Support 30 | 20 20 30 30 30 30 Greatest Overweight (x) 2 | . 2 1 1 1 2 Average Overweight (x) . | . 1 1 1 1 1 Largest Inventory Capacity 20 | 8 20 20 20 20 20 Average Capacity 17 | 7 15 20 20 20 20 Most Carried 15 | 4 7 8 8 15 15 Average Carried 8 | 1 5 5 8 12 12 Final Capacity 20 | 8 20 20 20 20 20 Final Carried 15 | 4 6 8 8 15 10 Class Distribution -------------------- 100% | Mutant Dominant Class ---------------- Mutant | -10/Materials Mutant | -9/Materials Mutant | -9/Mines Mutant | -7/Zion Mutant | -6/Proximity Caves Resources | -11 -10 -9 -9 -7 -6 ----------- Run | Yrd Mat Mat Min Zio Pro Matter Collected 554 | 270 128 80 . 46 30 Remotely . | . . . . . . Salvage Created 590 | 161 195 146 . . 88 Parts 38 | 7 10 16 . . 5 Haulers Intercepted . | . . . . . . Recyclers Shooed . | . . . . . . Parts Field Recycled . | . . . . . . Retrieved Matter . | . . . . . . Parts Self-Destructed 5 | . . . . . 5 Prevented 3 | . . . . . 3 Kills | -11 -10 -9 -9 -7 -6 ------- Run | Yrd Mat Mat Min Zio Pro Combat Hostiles Destroyed 18 | . 6 6 . . 6 Guns 17 | . 5 6 . . 6 Classes Destroyed 6 | 2 3 1 . . . Tunneler 4 | 4 . . . . . Recycler 1 | 1 . . . . . Watcher 2 | . 1 1 . . . Swarmer 13 | . 3 4 . . 6 Grunt 3 | . 3 . . . . Sentry 2 | . . 2 . . . Best Kill Streak 5 | 3 5 3 . . 3 Combat Bots Only 5 | . 5 3 . . 3 Max Kills in Single Turn 2 | 1 1 2 . . 1 Gunslinging 1 | . . 1 . . . Exploded . | . . . . . . Melee . | . . . . . . Uniques/NPCs Destroyed . | . . . . . . Combat | -11 -10 -9 -9 -7 -6 -------- Run | Yrd Mat Mat Min Zio Pro Hostile Shots Fired 122 | . 35 20 . . 67 Missed 31 | . 7 8 . . 16 Damage Taken 1384 | . 315 144 . . 925 Core 510 | . 100 38 . . 372 Absorbed by Shields . | . . . . . . Core Remaining (%) 80 | 100 60 . . . . Volleys Fired 66 | 11 27 12 . . 16 Largest 2 | 2 2 2 . . 2 Hottest 130 | 100 100 130 . . 130 Shots Fired 123 | 22 47 24 . . 30 Gun 121 | 22 45 24 . . 30 Cannon . | . . . . . . Launcher . | . . . . . . Special 2 | . 2 . . . . Kinetic 12 | . 12 . . . . Thermal 111 | 22 35 24 . . 30 Explosive . | . . . . . . Electromagnetic . | . . . . . . Robot Hit Streak 19 | 6 14 15 . . 19 Robot Miss Streak 10 | 2 7 10 . . 7 Penetration Max . | . . . . . . Secondary Targets 2 | . . 1 . . 1 Max Gunslinging Chain 1 | . . 1 . . 1 Shots Hit Robots 93 | 13 31 21 . . 28 Core Hits 84 | 6 10 26 . . 42 Critical Kills . | . . . . . . Critical Parts Destroyed . | . . . . . . Critical Strikes 5 | 2 3 . . . . Burn 5 | 2 3 . . . . Melee Attacks 1 | . . . . . 1 Impact . | . . . . . . Slashing 1 | . . . . . 1 Piercing . | . . . . . . Sneak Attacks . | . . . . . . Combat Hostiles . | . . . . . . Follow-up Attacks . | . . . . . . Damage Inflicted 1316 | 164 420 286 . . 446 Guns 1316 | 164 420 286 . . 446 Cannons . | . . . . . . Explosions . | . . . . . . Melee . | . . . . . . Ramming . | . . . . . . Kinetic 136 | . 136 . . . . Thermal 1180 | 164 284 286 . . 446 Explosive . | . . . . . . Electromagnetic . | . . . . . . Impact . | . . . . . . Slashing . | . . . . . . Piercing . | . . . . . . Highest Corruption . | . . . . . . Average Corruption . | . . . . . . Corruption Purged . | . . . . . . Corruption Blocked . | . . . . . . Overload Shots . | . . . . . . Overflow Damage . | . . . . . . Projectiles . | . . . . . . Explosions . | . . . . . . Melee . | . . . . . . Knockbacks . | . . . . . . Impact . | . . . . . . Kinetic . | . . . . . . Secondary . | . . . . . . Self-Inflicted Damage . | . . . . . . Shots . | . . . . . . Rammed . | . . . . . . Targets Rammed . | . . . . . . Kicked . | . . . . . . Crushed . | . . . . . . Highest Temperature 413 | 117 413 108 . . 162 Average Temperature 95 | 37 171 34 . . 60 Received Heat Transfer 213 | . 150 36 . . 27 Effects 5 | . 5 . . . . Shutdowns 1 | . 1 . . . . Energy Bleed 1 | . 1 . . . . Interference 2 | . 2 . . . . Matter Decay 1 | . 1 . . . . Siege Activations . | . . . . . . Robots Corrupted . | . . . . . . Combat Hostiles . | . . . . . . Parts Fried . | . . . . . . Impact Corruptions . | . . . . . . Robots Melted 1 | . 1 . . . . Combat Hostiles 1 | . 1 . . . . Parts Melted 3 | 2 1 . . . . Heat Transferred 2617 | 629 1073 340 . . 575 Parts Sabotaged . | . . . . . . Parts Stolen . | . . . . . . Parts Stripped . | . . . . . . Power Chain Reactions . | . . . . . . Alert | -11 -10 -9 -9 -7 -6 ------- Run | Yrd Mat Mat Min Zio Pro Peak Influence 250 | 25 184 250 97 . . Initial 97 | . 16 3 97 . . Average 72 | 10 55 159 97 . . Maximum Alert Level 1 | . . 1 . . . Low Security (%) 94 | 100 100 74 100 . . Level 1 5 | . . 25 . . . Level 2 . | . . . . . . Level 3 . | . . . . . . Level 4 . | . . . . . . Level 5 . | . . . . . . High Security . | . . . . . . Max Security . | . . . . . . Squads Dispatched 5 | . 4 . . . 1 Investigation 2 | . 2 . . . . Extermination . | . . . . . . Reinforcement 2 | . 2 . . . . Assault 1 | . . . . . 1 Garrison . | . . . . . . Intercept . | . . . . . . Searches Triggered . | . . . . . . Construction Impeded . | . . . . . . Haulers Reinforced . | . . . . . . Active Scanning Responses . | . . . . . . Cargo Convoy Interrupts . | . . . . . . Stealth | -11 -10 -9 -9 -7 -6 --------- Run | Yrd Mat Mat Min Zio Pro Distress Signals 1 | . 1 . . . . Communications Jammed . | . . . . . . Distress Signals . | . . . . . . Times Spotted 34 | . 10 11 . . 13 Peak Tracking Total 7 | . 5 5 . . 7 Tactical Retreats 2 | . 1 1 . . . Traps | -11 -10 -9 -9 -7 -6 ------- Run | Yrd Mat Mat Min Zio Pro Traps Triggered 2 | . 2 . . . . Indirectly . | . . . . . . Trap Hack Attempts . | . . . . . . Triggered . | . . . . . . Disarmed . | . . . . . . Reprogrammed . | . . . . . . Reused . | . . . . . . Traps Extracted . | . . . . . . Installed . | . . . . . . Triggered 2 | . . . . . 2 Machines | -11 -10 -9 -9 -7 -6 ---------- Run | Yrd Mat Mat Min Zio Pro Machines Disabled . | . . . . . . Max in Single Turn . | . . . . . . Machines Repaired . | . . . . . . Machines Dismantled . | . . . . . . Machines Sabotaged . | . . . . . . Overloaded Fab Kills . | . . . . . . Hacking | -11 -10 -9 -9 -7 -6 --------- Run | Yrd Mat Mat Min Zio Pro Machines Accessed 5 | . 5 . . . . Terminals 5 | . 5 . . . . Fabricators . | . . . . . . Repair Stations . | . . . . . . Recycling Units . | . . . . . . Scanalyzers . | . . . . . . Garrison Access . | . . . . . . Total Hacks 13 | . 13 . . . . Successful 5 | . 5 . . . . Failed 8 | . 8 . . . . Catastrophic 1 | . 1 . . . . Database Lockouts . | . . . . . . Manual . | . . . . . . Terminals 13 | . 13 . . . . Fabricators . | . . . . . . Repair Stations . | . . . . . . Recycling Units . | . . . . . . Scanalyzers . | . . . . . . Garrison Access . | . . . . . . Terminal Hacks 5 | . 5 . . . . Prototype ID Bank 1 | . 1 . . . . Alert Level 1 | . 1 . . . . Dispatch Records 1 | . 1 . . . . Zone Layout 2 | . 2 . . . . Fabricator Hacks . | . . . . . . Repair Station Hacks . | . . . . . . Recycling Unit Hacks . | . . . . . . Scanalyzer . | . . . . . . Garrison Access Hacks . | . . . . . . Unauthorized Hacks . | . . . . . . Terminals . | . . . . . . Fabricators . | . . . . . . Repair Stations . | . . . . . . Recycling Units . | . . . . . . Scanalyzers . | . . . . . . Garrison Access . | . . . . . . Data Cores Recovered . | . . . . . . Used . | . . . . . . Hacking Detections 4 | . 4 . . . . Full Trace Events . | . . . . . . Feedback Events . | . . . . . . Feedback Blocked . | . . . . . . Robot Schematics Acquired . | . . . . . . Robots Built . | . . . . . . Authchips . | . . . . . . Time . | . . . . . . Total Robot Build Rating . | . . . . . . Part Schematics Acquired . | . . . . . . Parts Built . | . . . . . . Authchips . | . . . . . . Time . | . . . . . . Total Part Build Rating . | . . . . . . Parts Repaired . | . . . . . . Time . | . . . . . . Parts Recycled . | . . . . . . Recycled Matter . | . . . . . . Retrieved Matter . | . . . . . . Retrieved Components . | . . . . . . Parts Scanalyzed . | . . . . . . Part Schematics Acquired . | . . . . . . Parts Damaged . | . . . . . . Bothacking | -11 -10 -9 -9 -7 -6 ------------ Run | Yrd Mat Mat Min Zio Pro Used RIF Installer . | . . . . . . Robots Hacked . | . . . . . . Non-combat . | . . . . . . Combat . | . . . . . . Robot Hacks Applied . | . . . . . . Relay Couplers Released . | . . . . . . Fabnet Peak Effective % . | . . . . . . Robots Rewired . | . . . . . . Allies Hacked . | . . . . . . Hacks Repelled . | . . . . . . Allies | -11 -10 -9 -9 -7 -6 -------- Run | Yrd Mat Mat Min Zio Pro Total Allies . | . . . . . . Largest Group . | . . . . . . Highest-Rated Group . | . . . . . . Highest-Rated Ally . | . . . . . . Total Orders . | . . . . . . Ally Attacks . | . . . . . . Total Damage . | . . . . . . Kills . | . . . . . . Allies Corrupted . | . . . . . . Allies Melted . | . . . . . . Intel | -11 -10 -9 -9 -7 -6 ------- Run | Yrd Mat Mat Min Zio Pro Robot Analysis Total . | . . . . . . Derelict Logs Recovered 1 | . . . . 1 . Drone Launches . | . . . . . . Drone Recoveries . | . . . . . . Exploration | -11 -10 -9 -9 -7 -6 ------------- Run | Yrd Mat Mat Min Zio Pro Turns Passed 2034 | 158 611 227 29 902 107 Spaces Moved 1744 | 139 450 152 30 930 43 Core 2 | 2 . . . . . Treads . | . . . . . . Legs . | . . . . . . Wheels 1742 | 137 450 152 30 930 43 Hover . | . . . . . . Flight . | . . . . . . Fastest Speed 50 | 50 80 95 95 95 95 Average Speed 94 | 79 96 95 95 95 104 Slowest Speed 110 | 80 110 95 95 95 110 Overloaded Moves . | . . . . . . Propulsion Burnouts . | . . . . . . Robots Hopped . | . . . . . . Cave-ins Triggered . | . . . . . . Exploration Rate (%) 30 | 5 50 18 14 85 8 Regions Visited 5 Branch Regions 3 Pre-discovered Areas . | . . . . . . Known Exits Taken . | . . . . . . Unknown Exits Taken 5 | 1 1 1 1 1 . Scrap Searched 1 | . . . . 1 . Spaces Dug 2 | . 2 . . . . Terrain Destroyed 2 | . 2 . . . . Melee . | . . . . . . Projectile 2 | . 2 . . . . AOE . | . . . . . . Terrain Rammed . | . . . . . . Walls Destroyed . | . . . . . . Machines Disabled . | . . . . . . Actions | -11 -10 -9 -9 -7 -6 --------- Run | Yrd Mat Mat Min Zio Pro Total 1996 | 160 575 210 30 947 74 Wait 118 | . 72 38 1 . 7 Move 1739 | 138 449 151 29 929 43 Hop . | . . . . . . Pick Up 29 | 4 9 5 . 10 1 Fast Attach 9 | 7 2 . . . . Attach 9 | . 2 2 . . 5 Detach 2 | . 2 . . . . Swap 11 | . 5 1 . 5 . Drop 12 | . 7 1 . 3 1 Fire 66 | 11 27 12 . . 16 Melee 1 | . . . . . 1 Ram . | . . . . . . Kick . | . . . . . . Crush . | . . . . . . Escape Stasis . | . . . . . . Rewire . | . . . . . . Trap . | . . . . . . Miscellaneous . | . . . . . . Route ------- -11/Scrapyard -10/Materials -9/Materials -9/Mines -7/Zion -6/Proximity Caves History --------- Turn | Location | Event 11 | -11/Scrapyard | Discovered new exit (range 15) 159 | -11/Scrapyard | Entered Materials 310 | -10/Materials | Build established: Mutant 681 | -10/Materials | Discovered new exit (range 13) 770 | -10/Materials | Entered another Materials area 770 | -9/Materials | Evolved 2 slots: Propulsion x1, Utility x1 977 | -9/Materials | Discovered new exit (range 16) 997 | -9/Materials | Entered Mines 998 | -9/Mines | Assembled infested the area 1003 | -9/Mines | Assisted by a Guerilla fighting off Assembled 1019 | -9/Mines | A Derelict revealed a hidden shortcut to a safe place 1026 | -9/Mines | Entered Zion 1205 | -7/Zion | Found Prototype Device 1206 | -7/Zion | Identified Mobile Refinery Mk. CCLXVII 1259 | -7/Zion | Given the Hacking Drone Bay 1262 | -7/Zion | Found Prototype Device 1263 | -7/Zion | Identified Hacking Drone Bay 1918 | -7/Zion | Discovered new exit (range 10) 1928 | -7/Zion | Entered Proximity Caves 2003 | -6/Proximity Caves | Lost 6 parts (1p2n1u2w) 2020 | -6/Proximity Caves | Attracted the attention of an 0b10 outpost 2025 | -6/Proximity Caves | Core integrity fell below 50% 2034 | -6/Proximity Caves | Core integrity fell below 20% 2035 | -6/Proximity Caves | Destroyed by L-41 Fighter with Axe Last Messages --------------- 01971_ Switching to secondary target: S-27 Virus. 01972_ Wheel destroyed. 01983_ S-27 Virus destroyed. 01985_ Lgt. Nuclear Core fries itself beyond repair. 01992_ Acquired 15 matter. 01993_ Acquired 5 matter. 02020_ Y-64 Sentinel: "DETECTED UNIDENTIFIED DERELICT." 02024_ Y-64 Sentinel: "REQUESTING BACKUP." 02024_ Penetrated by Slug. 02024_ Wheel destroyed. 02025_ S-27 Virus destroyed. 02026_ Penetrated by Slug. 02028_ Wheel destroyed. 02029_ Penetrated by Slug. 02031_ Spread Laser destroyed. 02032_ VTOL Module fries itself beyond repair. 02032_ Spread Laser destroyed. Map ----- +----------------------------------------------------+ | ?????????????????????????????????????????????????? | | ?????????????????????????????????????????????????? | | ?????????????????????????????????????????????????? | | ?????????????????????????????????????????????????? | | ?????????????????????????????????????????????????? | | ?????????????????????????????????????????????????? | | ?????????????????????????????????????????????????? | | ?????????????????????????????????????????????????? | | ?????????????????????????????????????????????????? | | ?????????????????????????????????????????????????? | | ?????????????????????????????????????????????????? | | ?????????????????????????????????????????????????? | | ?????????????????????????????????????????????????? | | ?????????????????????????????????????????????????? | | ?????????????????????????????????????????????????? | | ?????????????????????????????????????????????????? | | ?????????????????????????????????????????????????? | | ?????????????????????????????????????????????????? | | ?????????????????????????????????????????????????? | | ?????????????????????????????????????????????????? | | ?????????????????????????????????????????????????? | | ?????????????????????????????????????????????????? | | ????????????????????????#########????????????????? | | ????????????????????????# ?????????????????? | | ????????????????????????# lss#???????????????????? | | ????######????####??????#@Y #???????????????????? | | ???## #???## ######## # g "#???????????????? | | ??## #??## # #??#$ "#???????????????? | | ?## #???# # #?????"#???????????????? | | ## #???# # #??????????????????????? | | #???## ### #??????????????????????? | | #???# ##?## ########???????????????? | | ##### ##### ###???# #?????????? | | #???## ## ##????# #?????????????? | | #????## ##????######## #?????????????? | | #?????## %% #???????????? ??????????? | | #??????### ##????????????? ?????????? | | ?????????# ##??????????????? ####??????????? | | ?????????# ##????????????????? ##?????????????? | | ????????? ??????????????????? ##??????????????? | | ???????? ##???????????????????#???????????????? | | ??????? ????????????????????????????????????? | | ??????## ????????????????????????????????????? | | ???????## ???????????????????????????????????? | | ????????## ???????????????????????????????????? | | ?????????## ???????????????????????????????????? | | ???????????# ??????????????????????????????????? | | ????????????# ??????????????????????????????????? | | ????????????? ??????????????????????????????????? | | ????????????? ??????????????????????????????????? | +----------------------------------------------------+ Best States ------------- Heat Dissipation 38 Energy Generation 16 Energy Capacity 290 Matter Stores 300 Matter Capacity 300 Sight Range 16 Terrain Scan Density 10 Evasion (%) 44 Item Schematics ----------------- None Robot Schematics ------------------ None Fabricated ------------ Nothing Alien Tech Used ----------------- None Achievements -------------- None Challenges ------------ None Game ------ Seed FissionInsulationMount Manual? 0 Play Time 00:20:17 Cumulative 15.9 hours Start 2024.04.26 @ 03:11:43 End 2024.04.26 @ 03:30:13 Sessions 1 Manual Loads 0 Difficulty Rogue Special Mode None Game No. 25 Rogue 25 Adventurer 0 Explorer 0 Win Type - Total 0 Types 0/0/0/0/0/0/0/0/0 Lore% 19 Gallery% 19 Achievement% 18 Wizard Run 0 Options --------- Layout 1 ASCII 0 Keyboard 1 Movement Arrows Keybinds 0 Fullscreen 1 Font 24/Smallcaps Map View 50x35 Zoom Use 0% Tactical HUD 1 Map Filters NONE Filters NONE Steam 1 RUN: 290b3aa4-f5a5-4bce-986c-0f6a91460b95